fUST/lending_fUST_20241006
["ID","MTS","AMOUNT","RATE_DAILY","PERIOD"]
[339892364,1728146992407,-500.0,0.00013972,2]
[339892365,1728146992441,-500.0,0.00013972,2]
[339892366,1728146992473,-500.0,0.00013972,2]
[339892367,1728146992504,-500.0,0.00013972,2]
[339892368,1728146992535,-500.0,0.00013972,2]
[339892369,1728146992567,-500.0,0.00013972,2]
[339892370,1728146992598,-783.66,0.00013972,2]
[339892371,1728146992631,-500.0,0.00013972,2]
[339892372,1728146992664,-762.14,0.00013972,2]
[339892373,1728146992696,-500.0,0.00013972,2]
[339892374,1728146992726,-727.26,0.00013972,2]
[339892375,1728146992758,-662.11,0.00013972,2]
[339892376,1728146992793,-1046.85,0.00013972,2]
[339892377,1728146992824,-524.9,0.00013972,2]
[339892378,1728146992856,-500.0,0.00013972,2]
[339892379,1728146992888,-541.51120275,0.00013972,2]
[339892380,1728146992921,-610.87,0.00013972,2]
[339892381,1728146992955,-500.0,0.00013972,2]
[339892382,1728146992987,-745.97,0.00013972,2]
[339892383,1728146993019,-500.0,0.00013972,2]
[339892384,1728146993051,-500.0,0.00013972,2]
[339892385,1728146993083,-500.0,0.00013972,2]
[339892386,1728146993114,-512.62337266,0.00013972,2]
[339892387,1728146993147,-500.0,0.00013972,2]
[339892388,1728146993178,-500.0,0.00013972,2]
[339892389,1728146993209,-500.0,0.00013972,2]
[339892390,1728146993242,-500.0,0.00013972,2]
[339892391,1728146993274,-500.0,0.00013972,2]
[339892392,1728146993306,-889.98,0.00013972,2]
[339892393,1728146993338,-500.0,0.00013972,2]
[339892394,1728146993371,-503.86462829,0.00013972,2]
[339892395,1728146993403,-840.97,0.00013972,2]
[339892396,1728146993435,-500.0,0.00013972,2]
[339892397,1728146993468,-500.0,0.00013972,2]
[339892398,1728146993500,-500.0,0.00013972,2]
[339892399,1728146993532,-623.06,0.00013972,2]
[339892400,1728146993563,-500.0,0.00013972,2]
[339892401,1728146993595,-535.36358382,0.00013972,2]
[339892402,1728146993629,-500.0,0.00013972,2]
[339892403,1728146993665,-500.0,0.00013972,2]
[339892404,1728146993696,-549.48183397,0.00013972,2]
[339892405,1728146993728,-500.0,0.00013972,2]
[339892406,1728146993761,-500.0,0.00013972,2]
[339892407,1728146993793,-995.7,0.00013972,2]
[339892408,1728146993825,-500.0,0.00013972,2]
[339892409,1728146993860,-500.0,0.00013972,2]
[339892410,1728146993891,-633.5,0.00013972,2]
[339892411,1728146993923,-500.0,0.00013972,2]
[339892412,1728146993954,-500.0,0.00013972,2]
[339892413,1728146993986,-500.0,0.00013972,2]
[339892414,1728146994019,-949.06,0.00013972,2]
[339892415,1728146994058,-500.0,0.00013972,2]
[339892416,1728146994091,-500.0,0.00013972,2]
[339892417,1728146994124,-500.0,0.00013972,2]
[339892418,1728146994164,-500.0,0.00013972,2]
[339892419,1728146994195,-500.0,0.00013972,2]
[339892420,1728146994228,-643.48,0.00013972,2]
[339892421,1728146994261,-500.0,0.00013972,2]
[339892422,1728146994295,-500.0,0.00013972,2]
[339892423,1728146994331,-500.0,0.00013972,2]
[339892424,1728146994367,-500.0,0.00013972,2]
[339892425,1728146994402,-880.74,0.00013972,2]
[339892426,1728146994437,-868.77,0.00013972,2]
[339892427,1728146994469,-260.87,0.00013972,2]
[339892428,1728146994677,-500.0,0.00013972,2]
[339892429,1728146994716,-500.0,0.00013972,2]
[339892430,1728146994750,-500.0,0.00013972,2]
[339892431,1728146994782,-500.0,0.00013972,2]
[339892432,1728146994815,-500.0,0.00013972,2]
[339892433,1728146994848,-501.99,0.00013972,2]
[339892434,1728146994881,-500.0,0.00013972,2]
[339892435,1728146994914,-500.0,0.00013972,2]
[339892436,1728146994948,-500.0,0.00013972,2]
[339892437,1728146994979,-500.0,0.00013972,2]
[339892438,1728146995012,-500.0,0.00013972,2]
[339892439,1728146995044,-500.0,0.00013972,2]
[339892440,1728146995077,-500.0,0.00013972,2]
[339892441,1728146995109,-500.0,0.00013972,2]
[339892442,1728146995142,-500.0,0.00013972,2]
[339892443,1728146995176,-500.0,0.00013972,2]
[339892444,1728146995209,-500.0,0.00013972,2]
[339892445,1728146995243,-500.0,0.00013972,2]
[339892446,1728146995277,-611.0,0.00013972,2]
[339892447,1728146995310,-500.0,0.00013972,2]
[339892448,1728146995345,-500.0,0.00013972,2]
[339892449,1728146995380,-500.0,0.00013972,2]
[339892450,1728146995415,-500.0,0.00013972,2]
[339892451,1728146995448,-500.0,0.00013972,2]
[339892452,1728146995479,-500.0,0.00013972,2]
[339892453,1728146995510,-500.0,0.00013972,2]
[339892454,1728146995543,-500.0,0.00013972,2]
[339892455,1728146995575,-500.0,0.00013972,2]
[339892456,1728146995608,-500.0,0.00013972,2]
[339892457,1728146995640,-721.07,0.00013972,2]
[339892458,1728146995675,-539.3,0.00013972,2]
[339892459,1728146995709,-500.0,0.00013972,2]
[339892460,1728146995743,-500.0,0.00013972,2]
[339892461,1728146995774,-500.0,0.00013972,2]
[339892462,1728146995808,-500.0,0.00013972,2]
[339892463,1728146995841,-500.0,0.00013972,2]
[339892464,1728146995874,-788.69,0.00013972,2]
[339892465,1728146995906,-713.96,0.00013972,2]
[339892466,1728146995937,-565.29871913,0.00013972,2]
[339892467,1728146995968,-534.2,0.00013972,2]
[339892468,1728146995999,-500.0,0.00013972,2]
[339892469,1728146996031,-500.0,0.00013972,2]
[339892470,1728146996063,-664.84,0.00013972,2]
[339892471,1728146996093,-500.0,0.00013972,2]
[339892472,1728146996123,-500.0,0.00013972,2]
[339892473,1728146996156,-500.0,0.00013972,2]
[339892474,1728146996186,-793.97,0.00013972,2]
[339892475,1728146996216,-524.89231627,0.00013972,2]
[339892476,1728146996247,-500.0,0.00013972,2]
[339892477,1728146996276,-500.0,0.00013972,2]
[339892478,1728146996312,-500.0,0.00013972,2]
[339892479,1728146996343,-1095.12,0.00013972,2]
[339892480,1728146996375,-500.0,0.00013972,2]
[339892481,1728146996406,-500.0,0.00013972,2]
[339892482,1728146996438,-500.0,0.00013972,2]
[339892483,1728146996471,-500.0,0.00013972,2]
[339892484,1728146996503,-854.53,0.00013972,2]
[339892485,1728146996534,-500.0,0.00013972,2]
[339892486,1728146996567,-401.47502531,0.00013972,2]
[339892487,1728146996600,-842.37,0.00013972,2]
[339892488,1728146996631,-500.0,0.00013972,2]
[339892489,1728146996665,-500.0,0.00013972,2]
[339892490,1728146996698,-500.0,0.00013972,2]
[339892491,1728146996730,-747.01,0.00013972,2]
[339892492,1728146996763,-500.0,0.00013972,2]
[339892493,1728146996794,-500.0,0.00013972,2]
[339892494,1728146996825,-571.97030817,0.00013972,2]
[339892495,1728146996856,-500.0,0.00013972,2]
[339892496,1728146996887,-500.0,0.00013972,2]
[339892497,1728146996925,-500.0,0.00013972,2]
[339892498,1728146996956,-500.0,0.00013972,2]
[339892499,1728146996987,-500.0,0.00013972,2]
[339892500,1728146997018,-812.79,0.00013972,2]
[339892501,1728146997050,-1049.45,0.00013972,2]
[339892502,1728146997081,-500.0,0.00013972,2]
[339892503,1728146997112,-507.13,0.00013972,2]
[339892504,1728146997143,-500.0,0.00013972,2]
[339892505,1728146997175,-500.0,0.00013972,2]
[339892506,1728146997204,-500.0,0.00013972,2]
[339892507,1728146997236,-515.07514017,0.00013972,2]
[339892508,1728146997268,-500.0,0.00013972,2]
[339892509,1728146997300,-1035.73,0.00013972,2]
[339892510,1728146997331,-500.0,0.00013972,2]
[339892511,1728146997361,-500.0,0.00013972,2]
[339892512,1728146997393,-500.0,0.00013972,2]
[339892513,1728146997425,-500.0,0.00013972,2]
[339892514,1728146997456,-500.0,0.00013972,2]
[339892515,1728146997486,-500.0,0.00013972,2]
[339892516,1728146997518,-687.75,0.00013972,2]
[339892517,1728146997550,-500.0,0.00013972,2]
[339892518,1728146997580,-500.0,0.00013972,2]
[339892519,1728146997612,-500.0,0.00013972,2]
[339892520,1728146997644,-500.0,0.00013972,2]
[339892521,1728146997677,-500.0,0.00013972,2]
[339892522,1728146997708,-500.0,0.00013972,2]
[339892523,1728146997740,-500.0,0.00013972,2]
[339892524,1728146997770,-500.0,0.00013972,2]
[339892525,1728146997802,-500.0,0.00013972,2]
[339892526,1728146997835,-500.0,0.00013972,2]
[339892527,1728146997866,-500.0,0.00013972,2]
[339892528,1728146997898,-500.0,0.00013972,2]
[339892529,1728146997929,-500.0,0.00013972,2]
[339892530,1728146997959,-160.62675889,0.00013972,2]
[339892531,1728146997989,-500.0,0.00013972,2]
[339892532,1728146998021,-559.08,0.00013972,2]
[339892533,1728146998052,-500.0,0.00013972,2]
[339892534,1728146998083,-500.0,0.00013972,2]
[339892535,1728146998114,-1000.0,0.00013972,2]
[339892536,1728146998145,-500.00000005,0.00013972,2]
[339892537,1728146998177,-581.97,0.00013972,2]
[339892538,1728146998208,-500.0,0.00013972,2]
[339892539,1728146998243,-500.0,0.00013972,2]
[339892540,1728146998274,-500.0,0.00013972,2]
[339892541,1728146998310,-500.0,0.00013972,2]
[339892542,1728146998343,-1056.11,0.00013972,2]
[339892543,1728146998374,-500.0,0.00013972,2]
[339892544,1728146998408,-500.0,0.00013972,2]
[339892545,1728146998440,-675.04,0.00013972,2]
[339892546,1728146998471,-1157.17,0.00013972,2]
[339892547,1728146998503,-500.0,0.00013972,2]
[339892548,1728146998533,-500.0,0.00013972,2]
[339892549,1728146998565,-500.0,0.00013972,2]
[339892550,1728146998596,-500.0,0.00013972,2]
[339892551,1728146998629,-500.0,0.00013972,2]
[339892552,1728146998662,-500.0,0.00013972,2]
[339892553,1728146998695,-398.0,0.00013972,2]
[339892554,1728146998730,-500.0,0.00013972,2]
[339892555,1728146998763,-500.0,0.00013972,2]
[339892556,1728146998794,-500.0,0.00013972,2]
[339892557,1728146998826,-500.0,0.00013972,2]
[339892558,1728146999020,-500.0,0.00013972,2]
[339892559,1728146999087,-500.0,0.00013972,2]
[339892560,1728146999117,-500.0,0.00013972,2]
[339892561,1728146999151,-500.0,0.00013972,2]
[339892562,1728146999181,-500.0,0.00013972,2]
[339892563,1728146999215,-500.0,0.00013972,2]
[339892564,1728146999248,-500.0,0.00013972,2]
[339892565,1728146999279,-500.0,0.00013972,2]
[339892566,1728146999310,-500.0,0.00013972,2]
[339892567,1728146999342,-500.0,0.00013972,2]
[339892568,1728146999375,-649.95648221,0.00013972,2]
[339892569,1728146999407,-500.0,0.00013972,2]
[339892570,1728146999438,-500.0,0.00013972,2]
[339892571,1728146999469,-571.96004331,0.00013972,2]
[339892572,1728146999504,-500.0,0.00013972,2]
[339892573,1728146999551,-928.89,0.00013972,2]
[339892574,1728146999585,-500.0,0.00013972,2]
[339892575,1728146999618,-500.0,0.00013972,2]
[339892576,1728146999650,-500.0,0.00013972,2]
[339892577,1728146999684,-500.0,0.00013972,2]
[339892578,1728146999720,-500.0,0.00013972,2]
[339892579,1728146999752,-518.75050615,0.00013972,2]
[339892580,1728146999783,-500.0,0.00013972,2]
[339892581,1728146999814,-500.0,0.00013972,2]
[339892582,1728146999845,-515.37,0.00013972,2]
[339892583,1728146999875,-1472.02,0.00013972,2]
[339892584,1728146999907,-500.0,0.00013972,2]
[339892585,1728146999938,-500.0,0.00013972,2]
[339892586,1728146999968,-500.0,0.00013972,2]
[339892587,1728146999998,-825.06,0.00013972,2]
[339892588,1728147000029,-781.77,0.00013972,2]
[339892589,1728147000061,-706.69,0.00013972,2]
[339892590,1728147000100,-500.0,0.00013972,2]
[339892591,1728147000134,-500.0,0.00013972,2]
[339892592,1728147000168,-500.0,0.00013972,2]
[339892593,1728147000203,-500.0,0.00013972,2]
[339892594,1728147000237,-783.15,0.00013972,2]
[339892595,1728147000273,-644.16,0.00013972,2]
[339892596,1728147000311,-500.0,0.00013972,2]
[339892597,1728147000346,-500.0,0.00013972,2]
[339892598,1728147000396,-500.0,0.00013972,2]
[339892599,1728147000438,-500.0,0.00013972,2]
[339892600,1728147000475,-460.59530841,0.00013972,2]
[339892601,1728147000511,-500.0,0.00013972,2]
[339892602,1728147000548,-971.68,0.00013972,2]
[339892603,1728147000584,-500.0,0.00013972,2]
[339892604,1728147000619,-500.0,0.00013972,2]
[339892605,1728147000655,-500.0,0.00013972,2]
[339892606,1728147000690,-500.0,0.00013972,2]
[339892607,1728147000727,-500.0,0.00013972,2]
[339892608,1728147000763,-500.0,0.00013972,2]
[339892609,1728147000798,-532.56,0.00013972,2]
[339892610,1728147000835,-500.0,0.00013972,2]
[339892611,1728147000872,-500.0,0.00013972,2]
[339892612,1728147000913,-500.0,0.00013972,2]
[339892613,1728147000952,-500.0,0.00013972,2]
[339892614,1728147000987,-500.0,0.00013972,2]
[339892615,1728147001023,-500.0,0.00013972,2]
[339892616,1728147001061,-758.64,0.00013972,2]
[339892617,1728147001097,-1124.21,0.00013972,2]
[339892618,1728147001135,-500.0,0.00013972,2]
[339892619,1728147001172,-500.0,0.00013972,2]
[339892620,1728147001207,-500.0,0.00013972,2]
[339892621,1728147001243,-500.0,0.00013972,2]
[339892622,1728147001279,-547.69,0.00013972,2]
[339892623,1728147001315,-500.0,0.00013972,2]
[339892624,1728147001350,-500.0,0.00013972,2]
[339892625,1728147001383,-500.0,0.00013972,2]
[339892626,1728147001418,-501.1626565,0.00013972,2]
[339892627,1728147001452,-500.0,0.00013972,2]
[339892628,1728147001487,-500.0,0.00013972,2]
[339892629,1728147001522,-500.0,0.00013972,2]
[339892630,1728147001561,-730.37,0.00013972,2]
[339892631,1728147001598,-500.0,0.00013972,2]
[339892632,1728147001633,-500.0,0.00013972,2]
[339892633,1728147001669,-314.64414538,0.00013972,2]
[339892658,1728147032139,-1000.0,0.00013588,2]
[339892659,1728147032151,-500.0,0.00013698,2]
[339892661,1728147032172,-500.0,0.00013698,2]
[339892664,1728147032189,-500.0,0.00013698,2]
[339892666,1728147032200,-500.0,0.00013698,2]
[339892667,1728147032212,-500.87053432,0.00013698,2]
[339892669,1728147032222,-500.0,0.00013698,2]
[339892671,1728147032232,-500.0,0.00013698,2]
[339892673,1728147032242,-500.0,0.00013698,2]
[339892674,1728147032252,-500.0,0.00013698,2]
[339892676,1728147032262,-1207.97648279,0.00013698,2]
[339892678,1728147032277,-327.22351721,0.00013698,2]
[339892680,1728147032287,-514.88,0.00013698,2]
[339892682,1728147032298,-500.0,0.00013698,2]
[339892684,1728147032311,-500.0,0.00013698,2]
[339892685,1728147032321,-966.22,0.00013698,2]
[339892687,1728147032331,-669.5,0.00013698,2]
[339892688,1728147032341,-500.0,0.00013698,2]
[339892689,1728147032352,-346.00677894,0.00013698,2]
[339892692,1728147032364,-153.99322106,0.00013698,2]
[339892693,1728147032374,-756.77,0.00013698,2]
[339892695,1728147032385,-508.50896403,0.00013698,2]
[339892697,1728147032395,-500.0,0.00013698,2]
[339892699,1728147032404,-500.0,0.00013698,2]
[339892700,1728147032414,-500.0,0.00013698,2]
[339892701,1728147032424,-500.0,0.00013698,2]
[339892702,1728147032436,-500.0,0.00013698,2]
[339892703,1728147032445,-1203.69,0.00013698,2]
[339892704,1728147032455,-500.0,0.00013698,2]
[339892705,1728147032465,-687.84,0.00013698,2]
[339892706,1728147032474,-156.98591181,0.00013698,2]
[339892707,1728147032484,-500.0,0.00013698,2]
[339892708,1728147032493,-500.0,0.00013698,2]
[339892709,1728147032503,-500.0,0.00013698,2]
[339892710,1728147032513,-500.0,0.00013698,2]
[339892711,1728147032523,-698.63,0.00013698,2]
[339892712,1728147032533,-500.0,0.00013698,2]
[339892713,1728147032544,-30562.5185681,0.00013699,2]
[339892714,1728147032554,-411.91815049,0.00013961,2]
[339892715,1728147032564,-185.35585462,0.00013972,2]
[339892716,1728147032574,-656.52,0.00013972,2]
[339892717,1728147032583,-801.57,0.00013972,2]
[339892718,1728147032593,-500.0,0.00013972,2]
[339892719,1728147032603,-500.0,0.00013972,2]
[339892720,1728147032612,-500.0,0.00013972,2]
[339892721,1728147032622,-500.0,0.00013972,2]
[339892722,1728147032631,-500.0,0.00013972,2]
[339892723,1728147032641,-776.68,0.00013972,2]
[339892724,1728147032651,-500.0,0.00013972,2]
[339892725,1728147032660,-500.0,0.00013972,2]
[339892726,1728147032671,-500.0,0.00013972,2]
[339892727,1728147032681,-500.0,0.00013972,2]
[339892728,1728147032691,-500.0,0.00013972,2]
[339892729,1728147032700,-500.0,0.00013972,2]
[339892730,1728147032710,-500.0,0.00013972,2]
[339892731,1728147032720,-651.51,0.00013972,2]
[339892732,1728147032730,-716.57331525,0.00013972,2]
[339892733,1728147033260,-139.76668475,0.00013972,2]
[339892734,1728147033271,-1078.06,0.00013972,2]
[339892735,1728147033280,-500.0,0.00013972,2]
[339892736,1728147033290,-500.0,0.00013972,2]
[339892737,1728147033300,-258.87974856,0.00013972,2]
[339895118,1728147062949,-500.0,0.00013698,2]
[339895120,1728147062959,-1327.88,0.00013698,2]
[339895122,1728147062968,-500.0,0.00013698,2]
[339895124,1728147062977,-500.0,0.00013698,2]
[339895126,1728147062986,-500.0,0.00013698,2]
[339895128,1728147062995,-500.0,0.00013698,2]
[339895130,1728147063005,-3165.93,0.00013698,2]
[339895133,1728147063014,-500.0,0.00013698,2]
[339895135,1728147063024,-500.0,0.00013698,2]
[339895136,1728147063033,-202.28241725,0.00013698,2]
[339895138,1728147063042,-1157.23296236,0.00013698,2]
[339895141,1728147063052,-500.0,0.00013971,2]
[339895142,1728147063062,-500.0,0.00013971,2]
[339895145,1728147063071,-304.20383615,0.00013971,2]
[339895147,1728147063081,-361.07244017,0.00013971,2]
[339895149,1728147063091,-596.55756981,0.00013971,2]
[339895151,1728147063100,-500.0,0.00013971,2]
[339895153,1728147063110,-500.0,0.00013971,2]
[339895155,1728147063119,-500.0,0.00013971,2]
[339895157,1728147063129,-500.0,0.00013971,2]
[339895159,1728147063139,-241.12025144,0.00013972,2]
[339895161,1728147063149,-500.0,0.00013972,2]
[339895163,1728147063159,-500.0,0.00013972,2]
[339895165,1728147063168,-500.0,0.00013972,2]
[339895167,1728147063178,-500.0,0.00013972,2]
[339895169,1728147063187,-600.79,0.00013972,2]
[339895171,1728147063196,-500.0,0.00013972,2]
[339895173,1728147063207,-500.0,0.00013972,2]
[339895175,1728147063217,-500.0,0.00013972,2]
[339895177,1728147063228,-500.0,0.00013972,2]
[339895179,1728147063238,-500.0,0.00013972,2]
[339895181,1728147063248,-500.0,0.00013972,2]
[339895183,1728147063257,-500.0,0.00013972,2]
[339895185,1728147063267,-375.02096047,0.00013972,2]
[339895187,1728147063276,-500.0,0.00013972,2]
[339895189,1728147063286,-525.8,0.00013972,2]
[339895191,1728147063296,-577.06391155,0.00013972,2]
[339895193,1728147063306,-500.0,0.00013972,2]
[339895195,1728147063315,-500.0,0.00013972,2]
[339895197,1728147063325,-500.0,0.00013972,2]
[339895199,1728147063336,-716.2,0.00013972,2]
[339895201,1728147063347,-1937.52,0.00013972,2]
[339895204,1728147063357,-527.11204258,0.00013972,2]
[339895206,1728147063369,-546.23460476,0.00013972,2]
[339895208,1728147063378,-672.99,0.00013972,2]
[339895210,1728147063388,-500.0,0.00013972,2]
[339895212,1728147063398,-244.56,0.00013972,2]
[339895214,1728147063407,-500.0,0.00013972,2]
[339895216,1728147063417,-577.1,0.00013972,2]
[339895218,1728147063426,-500.0,0.00013972,2]
[339895220,1728147063437,-1306.47,0.00013972,2]
[339895222,1728147063447,-500.0,0.00013972,2]
[339895224,1728147063456,-500.0,0.00013972,2]
[339895226,1728147063465,-500.0,0.00013972,2]
[339895228,1728147063474,-500.0,0.00013972,2]
[339895230,1728147063483,-500.0,0.00013972,2]
[339895232,1728147063493,-500.0,0.00013972,2]
[339895234,1728147063504,-500.0,0.00013972,2]
[339895236,1728147063514,-500.0,0.00013972,2]
[339895238,1728147063524,-500.0,0.00013972,2]
[339895240,1728147063534,-500.0,0.00013972,2]
[339895242,1728147063544,-500.0,0.00013972,2]
[339895244,1728147063554,-500.0,0.00013972,2]
[339895246,1728147063564,-500.0,0.00013972,2]
[339895248,1728147063573,-547.02,0.00013972,2]
[339895250,1728147063582,-500.0,0.00013972,2]
[339895252,1728147063592,-500.0,0.00013972,2]
[339895254,1728147063601,-500.42379912,0.00013972,2]
[339895256,1728147063611,-500.0,0.00013972,2]
[339895258,1728147063621,-500.0,0.00013972,2]
[339895260,1728147063631,-500.0,0.00013972,2]
[339895262,1728147063641,-500.0,0.00013972,2]
[339895264,1728147063650,-500.0,0.00013972,2]
[339895266,1728147063659,-500.0,0.00013972,2]
[339895268,1728147063668,-500.0,0.00013972,2]
[339895270,1728147063677,-817.29,0.00013972,2]
[339895272,1728147063686,-500.0,0.00013972,2]
[339895274,1728147063697,-500.0,0.00013972,2]
[339895276,1728147063708,-500.0,0.00013972,2]
[339895278,1728147063718,-500.0,0.00013972,2]
[339895280,1728147063727,-500.0,0.00013972,2]
[339895282,1728147063738,-500.0,0.00013972,2]
[339895284,1728147063747,-672.45,0.00013972,2]
[339895286,1728147063756,-500.0,0.00013972,2]
[339895288,1728147063767,-500.0,0.00013972,2]
[339895290,1728147063777,-500.0,0.00013972,2]
[339895292,1728147063787,-500.0,0.00013972,2]
[339895294,1728147063798,-500.0,0.00013972,2]
[339895296,1728147063807,-500.0,0.00013972,2]
[339895298,1728147063818,-978.95,0.00013972,2]
[339895300,1728147063828,-500.0,0.00013972,2]
[339895302,1728147063839,-768.17,0.00013972,2]
[339895304,1728147063849,-500.0,0.00013972,2]
[339895306,1728147063859,-500.0,0.00013972,2]
[339895308,1728147063869,-500.0,0.00013972,2]
[339895310,1728147063880,-500.0,0.00013972,2]
[339895312,1728147063891,-500.0,0.00013972,2]
[339895314,1728147063901,-500.0,0.00013972,2]
[339895316,1728147063910,-500.0,0.00013972,2]
[339895318,1728147063920,-500.0,0.00013972,2]
[339895320,1728147063930,-500.0,0.00013972,2]
[339895322,1728147063940,-500.0,0.00013972,2]
[339895324,1728147063953,-500.0,0.00013972,2]
[339895326,1728147063964,-611.94,0.00013972,2]
[339895328,1728147063977,-500.0,0.00013972,2]
[339895330,1728147063986,-500.0,0.00013972,2]
[339895332,1728147063996,-500.0,0.00013972,2]
[339895334,1728147064006,-3465.96,0.00013972,2]
[339895336,1728147064017,-500.0,0.00013972,2]
[339895338,1728147064027,-500.0,0.00013972,2]
[339895340,1728147064038,-500.0,0.00013972,2]
[339895342,1728147064048,-571.43,0.00013972,2]
[339895344,1728147064059,-500.0,0.00013972,2]
[339895346,1728147064069,-500.0,0.00013972,2]
[339895348,1728147064079,-500.0,0.00013972,2]
[339895350,1728147064088,-1138.06,0.00013972,2]
[339895352,1728147064098,-500.0,0.00013972,2]
[339895354,1728147064108,-500.0,0.00013972,2]
[339895356,1728147064117,-666.61,0.00013972,2]
[339895358,1728147064127,-500.0,0.00013972,2]
[339895361,1728147064138,-500.0,0.00013972,2]
[339895363,1728147064148,-500.0,0.00013972,2]
[339895365,1728147064158,-733.73,0.00013972,2]
[339895367,1728147064167,-1342.73,0.00013972,2]
[339895369,1728147064177,-1095.52,0.00013972,2]
[339895371,1728147064187,-500.0,0.00013972,2]
[339895373,1728147064199,-500.0,0.00013972,2]
[339895375,1728147064210,-500.0,0.00013972,2]
[339895377,1728147064219,-500.0,0.00013972,2]
[339895379,1728147064229,-500.0,0.00013972,2]
[339895381,1728147064238,-600.73,0.00013972,2]
[339895383,1728147064248,-500.0,0.00013972,2]
[339895385,1728147064259,-500.0,0.00013972,2]
[339895387,1728147064270,-500.0,0.00013972,2]
[339895389,1728147064280,-500.0,0.00013972,2]
[339895391,1728147064291,-500.0,0.00013972,2]
[339895393,1728147064302,-500.0,0.00013972,2]
[339895395,1728147064312,-500.0,0.00013972,2]
[339895397,1728147064323,-151.0,0.00013972,2]
[339895399,1728147064336,-505.8440941,0.00013972,2]
[339895401,1728147064346,-151.0,0.00013972,2]
[339895403,1728147064356,-151.0,0.00013972,2]
[339895405,1728147064368,-639.5,0.00013972,2]
[339895408,1728147064380,-500.0,0.00013972,2]
[339895409,1728147064390,-500.0,0.00013972,2]
[339895412,1728147064405,-500.0,0.00013972,2]
[339895414,1728147064415,-151.0,0.00013972,2]
[339895416,1728147064426,-500.0,0.00013972,2]
[339895418,1728147064435,-151.0,0.00013972,2]
[339895419,1728147064447,-151.0,0.00013972,2]
[339895422,1728147064457,-242.443224,0.00013972,2]
[339895424,1728147064467,-500.0,0.00013972,2]
[339895426,1728147064476,-511.1,0.00013972,2]
[339895428,1728147064486,-578.7,0.00013972,2]
[339895430,1728147064496,-500.0,0.00013972,2]
[339895432,1728147064507,-657.03,0.00013972,2]
[339895434,1728147064516,-500.0,0.00013972,2]
[339895436,1728147064526,-500.0,0.00013972,2]
[339895438,1728147064536,-500.0,0.00013972,2]
[339895440,1728147064545,-510.92290648,0.00013972,2]
[339895442,1728147064555,-243.983746,0.00013972,2]
[339895444,1728147064565,-500.0,0.00013972,2]
[339895446,1728147064576,-500.0,0.00013972,2]
[339895448,1728147064587,-238.54651026,0.00013972,2]
[339895450,1728147064599,-1073.21,0.00013972,2]
[339895452,1728147064610,-500.0,0.00013972,2]
[339895454,1728147064621,-663.09,0.00013972,2]
[339895456,1728147064631,-500.0,0.00013972,2]